[Event "Titled Tuesday Blitz August 24 2021"]
[White "Przybylski, Wojciech"]
[Black "Kamsky, Gata"]
[WhiteFideId "1117599"]
[BlackFideId "2000024"]
[WhiteElo "2250"]
[BlackElo "2644"]
[Result "0-1"]
[Round "03"]
[TimeControl "180+1"]
[Date "2021.08.24"]
[WhiteClock "0:00:02"]
[BlackClock "0:01:37"]

1. e4 {[%clk 0:03:00]}  c5 {[%clk 0:02:56]} 2. Nf3 {[%clk 0:03:00]}  e6 {[%clk 0:02:55]} 3. b3 {[%clk 0:02:50]}  b6 {[%clk 0:02:51]} 4. Bb2 {[%clk 0:02:49]}  Bb7 {[%clk 0:02:49]} 5. Qe2 {[%clk 0:02:48]}  Nc6 {[%clk 0:02:45]} 6. Qe3 {[%clk 0:02:43]}  Nf6 {[%clk 0:02:39]} 7. Nc3 {[%clk 0:02:38]}  Be7 {[%clk 0:02:38]} 8. O-O-O {[%clk 0:02:32]}  d5 {[%clk 0:02:37]} 9. exd5 {[%clk 0:02:27]}  exd5 {[%clk 0:02:36]} 10. d4 {[%clk 0:02:24]}  O-O {[%clk 0:02:36]} 11. Bb5 {[%clk 0:02:18]}  a6 {[%clk 0:02:30]} 12. Bxc6 {[%clk 0:02:17]}  Bxc6 {[%clk 0:02:30]} 13. Ne5 {[%clk 0:02:17]}  Bb7 {[%clk 0:02:29]} 14. Kb1 {[%clk 0:02:08]}  Re8 {[%clk 0:02:27]} 15. f4 {[%clk 0:02:05]}  c4 {[%clk 0:02:24]} 16. bxc4 {[%clk 0:01:12]}  dxc4 {[%clk 0:02:17]} 17. d5 {[%clk 0:01:09]}  b5 {[%clk 0:02:01]} 18. Qd4 {[%clk 0:00:16]}  b4 {[%clk 0:01:59]} 19. Ne4 {[%clk 0:00:13]}  c3 {[%clk 0:01:57]} 20. Bc1 {[%clk 0:00:13]}  Nxd5 {[%clk 0:01:53]} 21. Rhe1 {[%clk 0:00:07]}  Qc7 {[%clk 0:01:48]} 22. Ng3 {[%clk 0:00:04]}  Rad8 {[%clk 0:01:45]} 23. Nf5 {[%clk 0:00:04]}  Bf8 {[%clk 0:01:44]} 24. Qf2 {[%clk 0:00:03]}  f6 {[%clk 0:01:43]} 25. Ng4 {[%clk 0:00:03]}  Rxe1 {[%clk 0:01:42]} 26. Rxe1 {[%clk 0:00:03]}  Bc8 {[%clk 0:01:40]} 27. Nfe3 {[%clk 0:00:02]}  Nxe3 {[%clk 0:01:39]} 28. Nxe3 {[%clk 0:00:02]}  Be6 {[%clk 0:01:37]} 29. Rd1 {[%clk 0:00:01]}  Rxd1 {[%clk 0:01:36]} 30. Nxd1 {[%clk 0:00:02]}  Qc4 {[%clk 0:01:37]} 0-1


[Site "https://www.chess.com"]

[Event "Titled Tuesday Blitz August 24 2021"]
[White "Rustemov, Alexander"]
[Black "Gurevich, Dmitry"]
[WhiteFideId "4119002"]
[BlackFideId "2000407"]
[WhiteElo "2734"]
[BlackElo "2506"]
[Result "1-0"]
[Round "03"]
[TimeControl "180+1"]
[Date "2021.08.24"]
[WhiteClock "0:01:17"]
[BlackClock "0:00:46"]

1. d4 {[%clk 0:03:00]}  Nf6 {[%clk 0:02:58]} 2. c4 {[%clk 0:03:00]}  a6 {[%clk 0:02:59]} 3. Nc3 {[%clk 0:02:59]}  c5 {[%clk 0:02:59]} 4. d5 {[%clk 0:02:58]}  b5 {[%clk 0:02:58]} 5. Qc2 {[%clk 0:02:40]}  d6 {[%clk 0:02:48]} 6. e4 {[%clk 0:02:40]}  b4 {[%clk 0:02:47]} 7. Nd1 {[%clk 0:02:39]}  g6 {[%clk 0:02:44]} 8. Nf3 {[%clk 0:02:37]}  Bg7 {[%clk 0:02:43]} 9. Ne3 {[%clk 0:02:32]}  O-O {[%clk 0:02:42]} 10. Bd3 {[%clk 0:02:32]}  a5 {[%clk 0:02:42]} 11. O-O {[%clk 0:02:31]}  a4 {[%clk 0:02:42]} 12. Rb1 {[%clk 0:02:30]}  Ng4 {[%clk 0:02:27]} 13. h3 {[%clk 0:02:23]}  Nxe3 {[%clk 0:02:26]} 14. Bxe3 {[%clk 0:02:24]}  Nd7 {[%clk 0:02:20]} 15. Bf4 {[%clk 0:02:21]}  Qb6 {[%clk 0:02:18]} 16. Rfe1 {[%clk 0:02:20]}  b3 {[%clk 0:02:17]} 17. axb3 {[%clk 0:02:19]}  axb3 {[%clk 0:02:07]} 18. Qd2 {[%clk 0:02:19]}  Ra2 {[%clk 0:02:04]} 19. e5 {[%clk 0:02:13]}  dxe5 {[%clk 0:02:01]} 20. Nxe5 {[%clk 0:02:12]}  Nxe5 {[%clk 0:02:00]} 21. Bxe5 {[%clk 0:02:12]}  Bxe5 {[%clk 0:01:59]} 22. Rxe5 {[%clk 0:02:12]}  Qf6 {[%clk 0:01:54]} 23. Qe3 {[%clk 0:02:06]}  e6 {[%clk 0:01:48]} 24. d6 {[%clk 0:02:01]}  Ra5 {[%clk 0:01:45]} 25. Rxc5 {[%clk 0:01:56]}  Rxc5 {[%clk 0:01:40]} 26. Qxc5 {[%clk 0:01:57]}  Bb7 {[%clk 0:01:30]} 27. Qc7 {[%clk 0:01:51]}  Ba8 {[%clk 0:01:29]} 28. Bf1 {[%clk 0:01:40]}  Qd4 {[%clk 0:01:23]} 29. c5 {[%clk 0:01:38]}  Be4 {[%clk 0:01:02]} 30. Re1 {[%clk 0:01:32]}  Bc2 {[%clk 0:01:02]} 31. d7 {[%clk 0:01:29]}  Qd2 {[%clk 0:00:56]} 32. Re3 {[%clk 0:01:22]}  Qd1 {[%clk 0:00:53]} 33. c6 {[%clk 0:01:18]}  Ra8 {[%clk 0:00:46]} 34. Qc8+ {[%clk 0:01:17]} 1-0


[Site "https://www.chess.com"]

[Event "Titled Tuesday Blitz August 24 2021"]
[White "Sadovsky, Artem"]
[Black "Samsonkin, Artiom"]
[WhiteFideId "4155840"]
[BlackFideId "13503111"]
[WhiteElo "2442"]
[BlackElo "2513"]
[Result "0-1"]
[Round "03"]
[TimeControl "180+1"]
[Date "2021.08.24"]
[WhiteClock "0:00:26"]
[BlackClock "0:01:28"]

1. Nf3 {[%clk 0:03:00]}  Nf6 {[%clk 0:02:58]} 2. g3 {[%clk 0:03:00]}  e6 {[%clk 0:02:57]} 3. Bg2 {[%clk 0:03:01]}  d5 {[%clk 0:02:58]} 4. O-O {[%clk 0:03:01]}  Be7 {[%clk 0:02:59]} 5. c4 {[%clk 0:03:02]}  O-O {[%clk 0:03:00]} 6. b3 {[%clk 0:03:02]}  b6 {[%clk 0:03:00]} 7. Bb2 {[%clk 0:03:02]}  Bb7 {[%clk 0:03:01]} 8. d3 {[%clk 0:03:03]}  c5 {[%clk 0:02:59]} 9. Nbd2 {[%clk 0:03:03]}  d4 {[%clk 0:02:55]} 10. Qc2 {[%clk 0:03:04]}  Nc6 {[%clk 0:02:53]} 11. Ne5 {[%clk 0:03:01]}  Nb4 {[%clk 0:02:38]} 12. Qb1 {[%clk 0:02:59]}  Bxg2 {[%clk 0:02:38]} 13. Kxg2 {[%clk 0:03:00]}  Qc7 {[%clk 0:02:37]} 14. Nef3 {[%clk 0:02:57]}  e5 {[%clk 0:02:36]} 15. Ne1 {[%clk 0:02:28]}  Rae8 {[%clk 0:02:21]} 16. f3 {[%clk 0:02:24]}  Nd7 {[%clk 0:02:15]} 17. Nc2 {[%clk 0:02:21]}  Nc6 {[%clk 0:02:13]} 18. Bc1 {[%clk 0:02:16]}  f5 {[%clk 0:02:13]} 19. a3 {[%clk 0:02:15]}  a5 {[%clk 0:02:11]} 20. Ra2 {[%clk 0:02:02]}  Bd6 {[%clk 0:01:57]} 21. Ne1 {[%clk 0:01:52]}  Nf6 {[%clk 0:01:56]} 22. Kg1 {[%clk 0:01:44]}  e4 {[%clk 0:01:49]} 23. dxe4 {[%clk 0:01:28]}  Bxg3 {[%clk 0:01:47]} 24. hxg3 {[%clk 0:01:25]}  Qxg3+ {[%clk 0:01:47]} 25. Ng2 {[%clk 0:01:25]}  fxe4 {[%clk 0:01:43]} 26. Nxe4 {[%clk 0:01:06]}  Nxe4 {[%clk 0:01:39]} 27. fxe4 {[%clk 0:01:07]}  Rxf1+ {[%clk 0:01:38]} 28. Kxf1 {[%clk 0:01:06]}  Rf8+ {[%clk 0:01:37]} 29. Kg1 {[%clk 0:00:26]}  Rf2 {[%clk 0:01:28]} 0-1


[Site "https://www.chess.com"]

[Event "Titled Tuesday Blitz August 24 2021"]
[White "Seo, Jung Min"]
[Black "Wieczorek, Zbigniew"]
[WhiteFideId "1734687"]
[BlackFideId "1102001"]
[WhiteElo "2486"]
[BlackElo "2297"]
[Result "1-0"]
[Round "03"]
[TimeControl "180+1"]
[Date "2021.08.24"]
[WhiteClock "0:00:10"]
[BlackClock "0:00:13"]

1. e4 {[%clk 0:03:00]}  g6 {[%clk 0:02:41]} 2. d4 {[%clk 0:03:00]}  Bg7 {[%clk 0:02:40]} 3. Nf3 {[%clk 0:02:58]}  d6 {[%clk 0:02:40]} 4. Be3 {[%clk 0:02:57]}  Nd7 {[%clk 0:02:39]} 5. Nc3 {[%clk 0:02:56]}  a6 {[%clk 0:02:39]} 6. Qd2 {[%clk 0:02:55]}  b5 {[%clk 0:02:39]} 7. Bd3 {[%clk 0:02:54]}  Bb7 {[%clk 0:02:39]} 8. a4 {[%clk 0:02:53]}  b4 {[%clk 0:02:39]} 9. Ne2 {[%clk 0:02:53]}  a5 {[%clk 0:02:39]} 10. c3 {[%clk 0:02:52]}  Ngf6 {[%clk 0:02:38]} 11. Ng3 {[%clk 0:02:52]}  e5 {[%clk 0:02:36]} 12. h3 {[%clk 0:02:49]}  O-O {[%clk 0:02:35]} 13. O-O {[%clk 0:02:49]}  Re8 {[%clk 0:02:34]} 14. dxe5 {[%clk 0:02:46]}  dxe5 {[%clk 0:02:32]} 15. cxb4 {[%clk 0:02:45]}  axb4 {[%clk 0:02:31]} 16. Qxb4 {[%clk 0:02:44]}  Qc8 {[%clk 0:01:41]} 17. Rfc1 {[%clk 0:02:39]}  Bf8 {[%clk 0:01:35]} 18. Qc3 {[%clk 0:02:39]}  c5 {[%clk 0:01:28]} 19. Nd2 {[%clk 0:02:36]}  Qc6 {[%clk 0:01:25]} 20. Bb5 {[%clk 0:02:34]}  Qc7 {[%clk 0:01:24]} 21. Nc4 {[%clk 0:02:31]}  Nxe4 {[%clk 0:01:19]} 22. Nxe4 {[%clk 0:02:30]}  Bxe4 {[%clk 0:01:20]} 23. Bxd7 {[%clk 0:02:04]}  Qxd7 {[%clk 0:01:21]} 24. f3 {[%clk 0:02:05]}  Bxf3 {[%clk 0:01:16]} 25. gxf3 {[%clk 0:02:04]}  Qxh3 {[%clk 0:01:17]} 26. Bf2 {[%clk 0:01:54]}  Bh6 {[%clk 0:01:16]} 27. Nxe5 {[%clk 0:01:44]}  Bg7 {[%clk 0:00:26]} 28. f4 {[%clk 0:01:41]}  Qf5 {[%clk 0:00:27]} 29. Qc4 {[%clk 0:01:16]}  g5 {[%clk 0:00:22]} 30. Rab1 {[%clk 0:00:23]}  gxf4 {[%clk 0:00:21]} 31. Qxf7+ {[%clk 0:00:23]}  Qxf7 {[%clk 0:00:21]} 32. Nxf7 {[%clk 0:00:23]}  Kxf7 {[%clk 0:00:22]} 33. Rxc5 {[%clk 0:00:24]}  Re6 {[%clk 0:00:20]} 34. a5 {[%clk 0:00:22]}  Rg6+ {[%clk 0:00:17]} 35. Kf1 {[%clk 0:00:22]}  Raa6 {[%clk 0:00:15]} 36. b4 {[%clk 0:00:21]}  f3 {[%clk 0:00:15]} 37. Rf5+ {[%clk 0:00:20]}  Ke6 {[%clk 0:00:14]} 38. Rxf3 {[%clk 0:00:20]}  Be5 {[%clk 0:00:13]} 39. Re1 {[%clk 0:00:17]}  Rf6 {[%clk 0:00:12]} 40. Rxf6+ {[%clk 0:00:14]}  Kxf6 {[%clk 0:00:12]} 41. Re2 {[%clk 0:00:10]}  Bc3 {[%clk 0:00:11]} 42. Be1 {[%clk 0:00:10]}  Bxe1 {[%clk 0:00:10]} 43. Kxe1 {[%clk 0:00:11]}  h5 {[%clk 0:00:10]} 44. Kd2 {[%clk 0:00:10]}  Kg5 {[%clk 0:00:10]} 45. Kc3 {[%clk 0:00:10]}  Ra8 {[%clk 0:00:10]} 46. Kc4 {[%clk 0:00:09]}  Kg4 {[%clk 0:00:10]} 47. Kb5 {[%clk 0:00:09]}  h4 {[%clk 0:00:11]} 48. a6 {[%clk 0:00:09]}  Kg3 {[%clk 0:00:11]} 49. Ka5 {[%clk 0:00:09]}  h3 {[%clk 0:00:11]} 50. b5 {[%clk 0:00:09]}  Kf3 {[%clk 0:00:11]} 51. Rh2 {[%clk 0:00:09]}  Kg3 {[%clk 0:00:11]} 52. Rxh3+ {[%clk 0:00:09]}  Kxh3 {[%clk 0:00:12]} 53. b6 {[%clk 0:00:10]}  Kg4 {[%clk 0:00:13]} 54. b7 {[%clk 0:00:10]}  Rf8 {[%clk 0:00:13]} 55. a7 {[%clk 0:00:10]} 1-0


[Site "https://www.chess.com"]

[Event "Titled Tuesday Blitz August 24 2021"]
[White "Skawinski, Arkadiusz"]
[Black "Pakleza, Zbigniew"]
[WhiteFideId "1126415"]
[BlackFideId "1119290"]
[WhiteElo "2200"]
[BlackElo "2526"]
[Result "0-1"]
[Round "03"]
[TimeControl "180+1"]
[Date "2021.08.24"]
[WhiteClock "0:00:19"]
[BlackClock "0:00:16"]

1. e4 {[%clk 0:03:00]}  d6 {[%clk 0:02:58]} 2. d4 {[%clk 0:03:00]}  Nf6 {[%clk 0:02:59]} 3. Nc3 {[%clk 0:03:01]}  c6 {[%clk 0:02:58]} 4. f4 {[%clk 0:02:57]}  Qb6 {[%clk 0:02:58]} 5. Nf3 {[%clk 0:02:57]}  Bg4 {[%clk 0:02:57]} 6. Be3 {[%clk 0:02:56]}  Qxb2 {[%clk 0:02:56]} 7. Bd2 {[%clk 0:02:41]}  Bxf3 {[%clk 0:02:45]} 8. gxf3 {[%clk 0:02:38]}  Qb6 {[%clk 0:02:45]} 9. Rb1 {[%clk 0:02:32]}  Qxd4 {[%clk 0:02:35]} 10. Rxb7 {[%clk 0:02:25]}  e6 {[%clk 0:02:24]} 11. Bd3 {[%clk 0:00:39]}  Nbd7 {[%clk 0:02:07]} 12. Ne2 {[%clk 0:00:38]}  Qc5 {[%clk 0:01:48]} 13. Bb4 {[%clk 0:00:38]}  Qh5 {[%clk 0:01:48]} 14. Ng3 {[%clk 0:00:38]}  Qh4 {[%clk 0:01:43]} 15. f5 {[%clk 0:00:21]}  d5 {[%clk 0:01:10]} 16. O-O {[%clk 0:00:19]}  Bc5+ {[%clk 0:01:02]} 17. Kh1 {[%clk 0:00:18]}  O-O {[%clk 0:01:01]} 18. fxe6 {[%clk 0:00:18]}  fxe6 {[%clk 0:01:01]} 19. Bxc5 {[%clk 0:00:17]}  Nxc5 {[%clk 0:01:00]} 20. Rb4 {[%clk 0:00:18]}  Rab8 {[%clk 0:00:51]} 21. Qd2 {[%clk 0:00:17]}  g6 {[%clk 0:00:31]} 22. Rxb8 {[%clk 0:00:17]}  Rxb8 {[%clk 0:00:30]} 23. Qc3 {[%clk 0:00:18]}  Nfd7 {[%clk 0:00:28]} 24. exd5 {[%clk 0:00:17]}  cxd5 {[%clk 0:00:27]} 25. Re1 {[%clk 0:00:17]}  Qb4 {[%clk 0:00:25]} 26. Qxb4 {[%clk 0:00:17]}  Rxb4 {[%clk 0:00:26]} 27. Kg2 {[%clk 0:00:17]}  Kf7 {[%clk 0:00:26]} 28. Nf1 {[%clk 0:00:16]}  Nxd3 {[%clk 0:00:26]} 29. cxd3 {[%clk 0:00:17]}  Rb2+ {[%clk 0:00:27]} 30. Kg3 {[%clk 0:00:17]}  Rxa2 {[%clk 0:00:27]} 31. Ne3 {[%clk 0:00:18]}  Nc5 {[%clk 0:00:23]} 32. d4 {[%clk 0:00:18]}  Nb3 {[%clk 0:00:23]} 33. Rb1 {[%clk 0:00:18]}  Nxd4 {[%clk 0:00:20]} 34. Rb7+ {[%clk 0:00:19]}  Ke8 {[%clk 0:00:17]} 35. Ng4 {[%clk 0:00:19]}  h5 {[%clk 0:00:16]} 36. Nf6+ {[%clk 0:00:19]}  Kd8 {[%clk 0:00:17]} 37. Rg7 {[%clk 0:00:19]}  Nf5+ {[%clk 0:00:16]} 0-1


[Site "https://www.chess.com"]

[Event "Titled Tuesday Blitz August 24 2021"]
[White "Stribuk, Artiom"]
[Black "Indjic, Aleksandar"]
[WhiteFideId "13515659"]
[BlackFideId "911925"]
[WhiteElo "2224"]
[BlackElo "2643"]
[Result "1-0"]
[Round "03"]
[TimeControl "180+1"]
[Date "2021.08.24"]
[WhiteClock "0:00:13"]
[BlackClock "0:00:20"]

1. d4 {[%clk 0:02:52]}  c5 {[%clk 0:02:58]} 2. d5 {[%clk 0:02:51]}  e5 {[%clk 0:02:59]} 3. e4 {[%clk 0:02:51]}  d6 {[%clk 0:02:59]} 4. Bb5+ {[%clk 0:02:51]}  Nd7 {[%clk 0:02:58]} 5. a4 {[%clk 0:02:50]}  a6 {[%clk 0:02:55]} 6. Bd3 {[%clk 0:02:50]}  Be7 {[%clk 0:02:55]} 7. Qe2 {[%clk 0:02:48]}  Bg5 {[%clk 0:02:53]} 8. Nd2 {[%clk 0:02:48]}  b6 {[%clk 0:02:39]} 9. Ngf3 {[%clk 0:02:46]}  Be7 {[%clk 0:02:39]} 10. c3 {[%clk 0:02:44]}  Ngf6 {[%clk 0:02:40]} 11. Nc4 {[%clk 0:02:39]}  Rb8 {[%clk 0:02:37]} 12. Ne3 {[%clk 0:02:37]}  g6 {[%clk 0:02:31]} 13. Nf1 {[%clk 0:02:30]}  Bf8 {[%clk 0:02:28]} 14. Ng3 {[%clk 0:02:29]}  Bg7 {[%clk 0:02:26]} 15. Bxa6 {[%clk 0:02:27]}  h5 {[%clk 0:02:22]} 16. h4 {[%clk 0:02:22]}  Bxa6 {[%clk 0:02:21]} 17. Qxa6 {[%clk 0:02:22]}  O-O {[%clk 0:02:19]} 18. Qe2 {[%clk 0:02:17]}  Ng4 {[%clk 0:02:03]} 19. Ng5 {[%clk 0:02:02]}  Qc7 {[%clk 0:02:03]} 20. f3 {[%clk 0:02:01]}  Ngf6 {[%clk 0:02:02]} 21. b3 {[%clk 0:01:48]}  c4 {[%clk 0:01:53]} 22. b4 {[%clk 0:01:47]}  Ra8 {[%clk 0:01:50]} 23. Be3 {[%clk 0:01:38]}  b5 {[%clk 0:01:51]} 24. a5 {[%clk 0:01:37]}  Ra6 {[%clk 0:01:50]} 25. Kd2 {[%clk 0:01:33]}  Qb7 {[%clk 0:01:49]} 26. Kc2 {[%clk 0:01:31]}  Re8 {[%clk 0:01:45]} 27. Nf1 {[%clk 0:01:30]}  Nf8 {[%clk 0:01:41]} 28. Nd2 {[%clk 0:01:30]}  Qc8 {[%clk 0:01:41]} 29. Rag1 {[%clk 0:01:28]}  Qd7 {[%clk 0:01:30]} 30. g3 {[%clk 0:01:19]}  Qc8 {[%clk 0:01:30]} 31. Kb2 {[%clk 0:01:16]}  Qd7 {[%clk 0:01:30]} 32. Nf1 {[%clk 0:01:13]}  Qc7 {[%clk 0:01:23]} 33. Bc1 {[%clk 0:01:11]}  Rea8 {[%clk 0:01:21]} 34. Kc2 {[%clk 0:01:08]}  Qd8 {[%clk 0:01:11]} 35. Rh2 {[%clk 0:01:06]}  Qc8 {[%clk 0:01:11]} 36. g4 {[%clk 0:01:03]}  Qd7 {[%clk 0:01:11]} 37. Ng3 {[%clk 0:00:50]}  hxg4 {[%clk 0:01:10]} 38. h5 {[%clk 0:00:50]}  gxf3 {[%clk 0:01:09]} 39. Qxf3 {[%clk 0:00:51]}  Qg4 {[%clk 0:01:00]} 40. hxg6 {[%clk 0:00:45]}  fxg6 {[%clk 0:00:58]} 41. Rf2 {[%clk 0:00:29]}  Qxf3 {[%clk 0:00:57]} 42. Rxf3 {[%clk 0:00:29]}  N6h7 {[%clk 0:00:54]} 43. Rgf1 {[%clk 0:00:28]}  Nxg5 {[%clk 0:00:50]} 44. Bxg5 {[%clk 0:00:29]}  R6a7 {[%clk 0:00:50]} 45. Nh1 {[%clk 0:00:22]}  Rd7 {[%clk 0:00:47]} 46. Nf2 {[%clk 0:00:22]}  Nh7 {[%clk 0:00:48]} 47. Bh4 {[%clk 0:00:22]}  Rf7 {[%clk 0:00:40]} 48. Rxf7 {[%clk 0:00:21]}  Kxf7 {[%clk 0:00:41]} 49. Ng4+ {[%clk 0:00:22]}  Ke8 {[%clk 0:00:40]} 50. Ne3 {[%clk 0:00:18]}  Ra7 {[%clk 0:00:37]} 51. Rg1 {[%clk 0:00:18]}  Kf7 {[%clk 0:00:37]} 52. Rf1+ {[%clk 0:00:19]}  Ke8 {[%clk 0:00:37]} 53. Kd2 {[%clk 0:00:19]}  Bh6 {[%clk 0:00:36]} 54. Ke2 {[%clk 0:00:19]}  Bf4 {[%clk 0:00:36]} 55. Bf2 {[%clk 0:00:17]}  Ra8 {[%clk 0:00:33]} 56. Ng2 {[%clk 0:00:14]}  Bg5 {[%clk 0:00:30]} 57. Rh1 {[%clk 0:00:13]}  Nf6 {[%clk 0:00:28]} 58. Rh8+ {[%clk 0:00:12]}  Kd7 {[%clk 0:00:24]} 59. Rxa8 {[%clk 0:00:13]}  Nxe4 {[%clk 0:00:25]} 60. a6 {[%clk 0:00:13]}  Nxc3+ {[%clk 0:00:24]} 61. Kf1 {[%clk 0:00:13]}  Nxd5 {[%clk 0:00:22]} 62. a7 {[%clk 0:00:13]}  Nc7 {[%clk 0:00:21]} 63. Rb8 {[%clk 0:00:13]}  c3 {[%clk 0:00:21]} 64. Ne1 {[%clk 0:00:13]}  d5 {[%clk 0:00:21]} 65. Rb7 {[%clk 0:00:12]}  Kc6 {[%clk 0:00:19]} 66. Rxc7+ {[%clk 0:00:13]}  Kxc7 {[%clk 0:00:20]} 67. a8=Q {[%clk 0:00:13]} 1-0


[Site "https://www.chess.com"]

[Event "Titled Tuesday Blitz August 24 2021"]
[White "Svane, Frederik"]
[Black "Polivanov, Anatoliy"]
[WhiteFideId "12923044"]
[BlackFideId "14109468"]
[WhiteElo "2459"]
[BlackElo "2472"]
[Result "1-0"]
[Round "03"]
[TimeControl "180+1"]
[Date "2021.08.24"]
[WhiteClock "0:00:03"]
[BlackClock "0:00:01"]

1. e4 {[%clk 0:03:00]}  c5 {[%clk 0:02:59]} 2. Nc3 {[%clk 0:02:59]}  g6 {[%clk 0:02:58]} 3. d4 {[%clk 0:02:59]}  cxd4 {[%clk 0:02:58]} 4. Qxd4 {[%clk 0:03:00]}  Nf6 {[%clk 0:02:58]} 5. Nf3 {[%clk 0:03:00]}  Nc6 {[%clk 0:02:55]} 6. Qa4 {[%clk 0:03:00]}  d6 {[%clk 0:02:55]} 7. e5 {[%clk 0:03:00]}  dxe5 {[%clk 0:02:54]} 8. Nxe5 {[%clk 0:03:01]}  Bd7 {[%clk 0:02:54]} 9. Nxd7 {[%clk 0:03:00]}  Nxd7 {[%clk 0:02:54]} 10. Be3 {[%clk 0:02:48]}  Bg7 {[%clk 0:02:53]} 11. Be2 {[%clk 0:02:45]}  O-O {[%clk 0:02:51]} 12. O-O {[%clk 0:02:41]}  Qa5 {[%clk 0:02:33]} 13. Qh4 {[%clk 0:01:45]}  Qb4 {[%clk 0:02:26]} 14. Ne4 {[%clk 0:01:12]}  f5 {[%clk 0:02:18]} 15. Bc4+ {[%clk 0:01:12]}  Kh8 {[%clk 0:02:01]} 16. Ng5 {[%clk 0:01:03]}  Nf6 {[%clk 0:01:57]} 17. c3 {[%clk 0:00:52]}  Qxb2 {[%clk 0:01:54]} 18. Rab1 {[%clk 0:00:30]}  Qxc3 {[%clk 0:01:50]} 19. Rfc1 {[%clk 0:00:30]}  Qa3 {[%clk 0:01:40]} 20. Rxb7 {[%clk 0:00:20]}  Ne5 {[%clk 0:01:33]} 21. Bb3 {[%clk 0:00:13]}  Rac8 {[%clk 0:01:29]} 22. Rxc8 {[%clk 0:00:11]}  Rxc8 {[%clk 0:01:29]} 23. h3 {[%clk 0:00:06]}  h5 {[%clk 0:00:51]} 24. Bf4 {[%clk 0:00:04]}  Rc1+ {[%clk 0:00:44]} 25. Kh2 {[%clk 0:00:04]}  Neg4+ {[%clk 0:00:26]} 26. hxg4 {[%clk 0:00:05]}  Nxg4+ {[%clk 0:00:26]} 27. Kg3 {[%clk 0:00:06]}  Rc3+ {[%clk 0:00:15]} 28. f3 {[%clk 0:00:06]}  Bd4 {[%clk 0:00:16]} 29. Rb8+ {[%clk 0:00:04]}  Kg7 {[%clk 0:00:15]} 30. Ne6+ {[%clk 0:00:05]}  Kh7 {[%clk 0:00:12]} 31. Nf8+ {[%clk 0:00:03]}  Kg7 {[%clk 0:00:10]} 32. Ne6+ {[%clk 0:00:03]}  Kh7 {[%clk 0:00:10]} 33. Nxd4 {[%clk 0:00:04]}  Qc5 {[%clk 0:00:07]} 34. Qg5 {[%clk 0:00:04]}  Qxd4 {[%clk 0:00:04]} 35. Qxe7+ {[%clk 0:00:04]}  Qg7 {[%clk 0:00:04]} 36. Bg8+ {[%clk 0:00:05]}  Kh8 {[%clk 0:00:03]} 37. Bf7+ {[%clk 0:00:05]}  Kh7 {[%clk 0:00:02]} 38. Bxg6+ {[%clk 0:00:02]}  Kxg6 {[%clk 0:00:01]} 39. Qg5+ {[%clk 0:00:03]} 1-0


[Site "https://www.chess.com"]

[Event "Titled Tuesday Blitz August 24 2021"]
[White "Sydoryka, Vladyslav"]
[Black "Kuzubov, Yuriy"]
[WhiteFideId "14145928"]
[BlackFideId "14112906"]
[WhiteElo "2217"]
[BlackElo "2564"]
[Result "0-1"]
[Round "03"]
[TimeControl "180+1"]
[Date "2021.08.24"]
[WhiteClock "0:00:01"]
[BlackClock "0:00:07"]

1. c4 {[%clk 0:03:00]}  e5 {[%clk 0:02:58]} 2. g3 {[%clk 0:03:01]}  Bc5 {[%clk 0:02:55]} 3. Bg2 {[%clk 0:03:01]}  Ne7 {[%clk 0:02:55]} 4. Nc3 {[%clk 0:03:00]}  d6 {[%clk 0:02:51]} 5. e3 {[%clk 0:02:59]}  Nbc6 {[%clk 0:02:47]} 6. Nge2 {[%clk 0:02:59]}  a6 {[%clk 0:02:48]} 7. a3 {[%clk 0:02:57]}  Ba7 {[%clk 0:02:42]} 8. b4 {[%clk 0:02:47]}  Be6 {[%clk 0:02:38]} 9. d3 {[%clk 0:02:43]}  Qd7 {[%clk 0:02:37]} 10. h4 {[%clk 0:02:41]}  O-O {[%clk 0:02:28]} 11. Nd5 {[%clk 0:02:35]}  Nd8 {[%clk 0:02:23]} 12. d4 {[%clk 0:02:20]}  c6 {[%clk 0:02:09]} 13. Nxe7+ {[%clk 0:02:18]}  Qxe7 {[%clk 0:02:10]} 14. dxe5 {[%clk 0:02:01]}  dxe5 {[%clk 0:02:07]} 15. c5 {[%clk 0:02:01]}  f5 {[%clk 0:01:41]} 16. Qc2 {[%clk 0:01:51]}  Bd5 {[%clk 0:01:31]} 17. e4 {[%clk 0:01:42]}  fxe4 {[%clk 0:01:29]} 18. Bxe4 {[%clk 0:01:43]}  h6 {[%clk 0:01:11]} 19. Nc3 {[%clk 0:01:37]}  Bc4 {[%clk 0:01:02]} 20. Nd1 {[%clk 0:01:14]}  Bf7 {[%clk 0:00:43]} 21. O-O {[%clk 0:01:05]}  Ne6 {[%clk 0:00:43]} 22. Bb2 {[%clk 0:01:02]}  Rad8 {[%clk 0:00:35]} 23. Ne3 {[%clk 0:00:46]}  Bb8 {[%clk 0:00:21]} 24. Rad1 {[%clk 0:00:41]}  Nd4 {[%clk 0:00:18]} 25. Bxd4 {[%clk 0:00:23]}  exd4 {[%clk 0:00:19]} 26. Nc4 {[%clk 0:00:24]}  Kh8 {[%clk 0:00:17]} 27. Rfe1 {[%clk 0:00:21]}  Qf6 {[%clk 0:00:17]} 28. f4 {[%clk 0:00:19]}  Bh5 {[%clk 0:00:16]} 29. Rd2 {[%clk 0:00:17]}  Rfe8 {[%clk 0:00:16]} 30. Rf1 {[%clk 0:00:16]}  d3 {[%clk 0:00:14]} 31. Bxd3 {[%clk 0:00:15]}  Rd4 {[%clk 0:00:11]} 32. Rff2 {[%clk 0:00:13]}  Red8 {[%clk 0:00:11]} 33. Bf1 {[%clk 0:00:12]}  Bg6 {[%clk 0:00:11]} 34. Qc1 {[%clk 0:00:09]}  Be4 {[%clk 0:00:10]} 35. Rxd4 {[%clk 0:00:03]}  Qxd4 {[%clk 0:00:10]} 36. Qe3 {[%clk 0:00:03]}  Qxe3 {[%clk 0:00:09]} 37. Nxe3 {[%clk 0:00:04]}  Rd4 {[%clk 0:00:07]} 38. Bg2 {[%clk 0:00:03]}  g5 {[%clk 0:00:07]} 39. hxg5 {[%clk 0:00:02]}  hxg5 {[%clk 0:00:07]} 40. fxg5 {[%clk 0:00:02]}  Kg7 {[%clk 0:00:07]} 41. Bxe4 {[%clk 0:00:02]}  Rxe4 {[%clk 0:00:07]} 42. Nf5+ {[%clk 0:00:03]}  Kg6 {[%clk 0:00:06]} 43. Nd6 {[%clk 0:00:01]}  Bxd6 {[%clk 0:00:07]} 44. cxd6 {[%clk 0:00:02]}  Rd4 {[%clk 0:00:07]} 45. Rf6+ {[%clk 0:00:02]}  Kxg5 {[%clk 0:00:07]} 46. Rf7 {[%clk 0:00:03]}  Rxd6 {[%clk 0:00:07]} 47. Rxb7 {[%clk 0:00:02]}  Rd3 {[%clk 0:00:08]} 48. Rb6 {[%clk 0:00:02]}  Rxg3+ {[%clk 0:00:08]} 49. Kf2 {[%clk 0:00:02]}  Rxa3 {[%clk 0:00:09]} 50. Rxc6 {[%clk 0:00:02]}  Kf4 {[%clk 0:00:09]} 51. Rb6 {[%clk 0:00:01]}  Ke4 {[%clk 0:00:09]} 52. b5 {[%clk 0:00:01]}  axb5 {[%clk 0:00:09]} 53. Rxb5 {[%clk 0:00:01]}  Kd4 {[%clk 0:00:08]} 54. Rb8 {[%clk 0:00:01]}  Kc4 {[%clk 0:00:07]} 0-1


[Site "https://www.chess.com"]